fUSD/lending_fUSD_20241022
["ID","MTS","AMOUNT","RATE_DAILY","PERIOD"]
[340665980,1729617069455,-516.9165527,0.0005589,120]
[340665981,1729617069464,-350.81391064,0.0005589,120]
[340665982,1729617069474,-500.0,0.0005589,120]
[340665983,1729617069483,-151.0,0.0005589,120]
[340665984,1729617069493,-501.90056104,0.0005589,120]
[340665985,1729617069503,-500.0,0.0005589,120]
[340665986,1729617069512,-534.05,0.0005589,120]
[340665987,1729617069521,-500.0,0.0005589,120]
[340665988,1729617069531,-3994.93,0.0005589,120]
[340665989,1729617069540,-500.0,0.0005589,120]
[340665990,1729617069549,-526.38125296,0.0005589,120]
[340665991,1729617069559,-504.36746489,0.0005589,120]
[340665992,1729617069569,-500.0,0.0005589,120]
[340665993,1729617069578,-246.88,0.0005589,120]
[340665994,1729617069587,-500.0,0.0005589,120]
[340665995,1729617069602,-512.94288889,0.0005589,120]
[340665996,1729617069611,-500.0,0.0005589,120]
[340665997,1729617069622,-500.0,0.0005589,120]
[340665998,1729617069631,-500.0,0.0005589,120]
[340665999,1729617069642,-512.40869727,0.0005589,120]
[340666000,1729617069651,-500.0,0.0005589,120]
[340666001,1729617069660,-500.0,0.0005589,120]
[340666002,1729617069671,-521.07606427,0.0005589,120]
[340666003,1729617069681,-500.0,0.0005589,120]
[340666004,1729617069691,-500.0,0.0005589,120]
[340666005,1729617069700,-500.0,0.0005589,120]
[340666006,1729617069709,-500.0,0.0005589,120]
[340666007,1729617069718,-518.52,0.0005589,120]
[340666008,1729617069727,-500.0,0.0005589,120]
[340666009,1729617069736,-500.0,0.0005589,120]
[340666010,1729617069745,-500.0,0.0005589,120]
[340666011,1729617069754,-500.0,0.0005589,120]
[340666012,1729617069763,-500.0,0.0005589,120]
[340666013,1729617069772,-500.0,0.0005589,120]
[340666014,1729617069781,-500.0,0.0005589,120]
[340666015,1729617069790,-500.0,0.0005589,120]
[340666016,1729617069799,-500.0,0.0005589,120]
[340666017,1729617069809,-500.0,0.0005589,120]
[340666018,1729617069818,-500.0,0.0005589,120]
[340666019,1729617069827,-500.0,0.0005589,120]
[340666020,1729617069837,-172.44202931,0.0005589,120]
[340666021,1729617069846,-500.0,0.0005589,120]
[340666022,1729617069856,-500.0,0.0005589,120]
[340666023,1729617069865,-500.0,0.0005589,120]
[340666024,1729617069882,-500.0,0.0005589,120]
[340666025,1729617070021,-508.94350691,0.0005589,120]
[340666026,1729617070031,-500.0,0.0005589,120]
[340666027,1729617070041,-500.0,0.0005589,120]
[340666028,1729617070051,-504.18082425,0.0005589,120]
[340666029,1729617070061,-567.55910104,0.0005589,120]
[340666030,1729617070071,-500.0,0.0005589,120]
[340666031,1729617070081,-500.0,0.0005589,120]
[340666032,1729617070090,-503.32945479,0.0005589,120]
[340666033,1729617070100,-2487.78,0.0005589,120]
[340666034,1729617070110,-353.725451,0.0005589,120]
[340666035,1729617070119,-1587.95,0.0005589,120]
[340666036,1729617070128,-500.0,0.0005589,120]
[340666037,1729617070137,-545.74761542,0.0005589,120]
[340666038,1729617070147,-2000.0,0.0005589,120]
[340666039,1729617070156,-151.0,0.0005589,7]
[340666040,1729617070165,-500.0,0.0005589,120]
[340666041,1729617070175,-500.0,0.0005589,120]
[340666042,1729617070184,-534.03402329,0.0005589,120]
[340666043,1729617070193,-353.725451,0.0005589,120]
[340666044,1729617070203,-462.35732183,0.0005589,120]
[340666045,1729617070213,-625.81479344,0.0005589,120]
[340666046,1729617070223,-2072.21,0.0005589,120]
[340666047,1729617070232,-517.98534445,0.0005589,120]
[340666048,1729617070241,-500.0,0.0005589,120]
[340666049,1729617070251,-500.0,0.0005589,120]
[340666050,1729617070261,-513.45593528,0.0005589,120]
[340666051,1729617070271,-614.75743648,0.0005589,120]
[340666052,1729617070280,-514.09904855,0.0005589,120]
[340666053,1729617070289,-500.0,0.0005589,120]
[340666054,1729617070298,-500.0,0.0005589,120]
[340666055,1729617070307,-811.1636,0.0005589,120]
[340666056,1729617070317,-151.0,0.0005589,120]
[340666057,1729617070327,-553.17715322,0.0005589,120]
[340666058,1729617070337,-500.0,0.0005589,120]
[340666059,1729617070346,-500.0,0.0005589,120]
[340666060,1729617070356,-151.0,0.0005589,120]
[340666061,1729617070367,-329.51923,0.0005589,120]
[340666062,1729617070377,-522.88728919,0.0005589,120]
[340666063,1729617070386,-702.41,0.0005589,120]
[340666064,1729617070398,-811.1636,0.0005589,120]
[340666065,1729617070407,-500.0,0.0005589,120]
[340666066,1729617070417,-520.31725441,0.0005589,120]
[340666067,1729617070426,-329.51923,0.0005589,120]
[340666068,1729617070435,-500.0,0.0005589,120]
[340666069,1729617070445,-500.0,0.0005589,120]
[340666070,1729617070455,-801.09,0.0005589,120]
[340666071,1729617070465,-622.23063567,0.0005589,120]
[340666072,1729617070476,-151.0,0.0005589,120]
[340666073,1729617070485,-500.0,0.0005589,120]
[340666074,1729617070495,-500.0,0.0005589,120]
[340666075,1729617070504,-500.0,0.0005589,120]
[340666076,1729617070513,-500.0,0.0005589,120]
[340666077,1729617070523,-501.47341774,0.0005589,120]
[340666078,1729617070534,-510.91589018,0.0005589,120]
[340666079,1729617070544,-500.0,0.0005589,120]
[340666080,1729617070553,-811.09,0.0005589,120]
[340666081,1729617070563,-500.0,0.0005589,120]
[340666082,1729617070573,-500.0,0.0005589,120]
[340666083,1729617070583,-556.39450037,0.0005589,120]
[340666084,1729617070592,-151.0,0.0005589,120]
[340666085,1729617070604,-500.0,0.0005589,120]
[340666086,1729617070614,-507.87202702,0.0005589,120]
[340666087,1729617070623,-550.64194883,0.0005589,120]
[340666088,1729617070633,-500.0,0.0005589,120]
[340666089,1729617070643,-515.80161979,0.0005589,120]
[340666090,1729617070652,-500.0,0.0005589,120]
[340666091,1729617070662,-506.24501125,0.0005589,120]
[340666092,1729617070671,-264.22121147,0.0005589,120]
[340666093,1729617070680,-500.0,0.0005589,120]
[340666094,1729617070690,-781.92,0.0005589,120]
[340666095,1729617070698,-159.89522618,0.0005589,120]
[340666096,1729617070707,-500.0,0.0005589,120]
[340666097,1729617070716,-610.74,0.0005589,120]
[340666098,1729617070726,-500.0,0.0005589,120]
[340666099,1729617070735,-500.0,0.0005589,120]
[340666100,1729617070745,-532.54180304,0.0005589,120]
[340666101,1729617070756,-500.0,0.0005589,120]
[340666102,1729617070768,-500.0,0.0005589,120]
[340666103,1729617070777,-500.0,0.0005589,120]
[340666104,1729617070787,-527.67262867,0.0005589,120]
[340666105,1729617070797,-655.98,0.0005589,120]
[340666106,1729617070808,-1351.58,0.0005589,120]
[340666107,1729617070818,-500.0,0.0005589,120]
[340666108,1729617070828,-537.71,0.0005589,120]
[340666109,1729617070837,-500.0,0.0005589,120]
[340666110,1729617070847,-500.0,0.0005589,120]
[340666111,1729617070855,-500.0,0.0005589,120]
[340666112,1729617070865,-500.0,0.0005589,120]
[340666113,1729617070876,-500.0,0.0005589,120]
[340666114,1729617070886,-3500.0,0.0005589,120]
[340666115,1729617070895,-524.45,0.0005589,120]
[340666116,1729617070904,-500.0,0.0005589,120]
[340666117,1729617070913,-500.0,0.0005589,120]
[340666118,1729617070922,-151.0,0.0005589,120]
[340666119,1729617070931,-500.0,0.0005589,120]
[340666120,1729617070939,-500.0,0.0005589,120]
[340666121,1729617070949,-500.0,0.0005589,120]
[340666122,1729617070959,-500.0,0.0005589,120]
[340666123,1729617070968,-500.0,0.0005589,120]
[340666124,1729617070977,-500.0,0.0005589,120]
[340666125,1729617070987,-500.0,0.0005589,120]
[340666126,1729617070996,-500.0,0.0005589,120]
[340666127,1729617071005,-1045.25,0.0005589,120]
[340666128,1729617071014,-500.0,0.0005589,120]
[340666129,1729617071024,-500.0,0.0005589,120]
[340666130,1729617071033,-500.0,0.0005589,120]
[340666131,1729617071042,-500.0,0.0005589,120]
[340666132,1729617071051,-500.0,0.0005589,120]
[340666133,1729617071061,-500.0,0.0005589,120]
[340666134,1729617071070,-500.0,0.0005589,120]
[340666135,1729617071080,-500.0,0.0005589,120]
[340666136,1729617071089,-653.9,0.0005589,30]
[340666137,1729617071099,-500.0,0.0005589,120]
[340666138,1729617071109,-500.0,0.0005589,120]
[340666139,1729617071119,-500.0,0.0005589,120]
[340666140,1729617071131,-500.0,0.0005589,120]
[340666141,1729617071141,-500.0,0.0005589,120]
[340666142,1729617071150,-500.0,0.0005589,120]
[340666143,1729617071159,-500.0,0.0005589,120]
[340666144,1729617071168,-546.79431753,0.0005589,120]
[340666145,1729617071177,-500.0,0.0005589,120]
[340666146,1729617071187,-504.10697926,0.0005589,120]
[340666147,1729617071196,-500.0,0.0005589,120]
[340666148,1729617071206,-204.124173,0.0005589,120]
[340666149,1729617071215,-500.0,0.0005589,120]
[340666150,1729617071224,-500.0,0.0005589,120]
[340666151,1729617071234,-500.0,0.0005589,120]
[340666152,1729617071243,-500.0,0.0005589,120]
[340666153,1729617071253,-204.124173,0.0005589,120]
[340666154,1729617071263,-500.0,0.0005589,120]
[340666155,1729617071273,-502.66109842,0.0005589,120]
[340666156,1729617071283,-300.0,0.0005589,120]
[340666157,1729617071292,-2949.68,0.0005589,120]
[340666158,1729617071301,-500.0,0.0005589,120]
[340666159,1729617071311,-151.0,0.0005589,120]
[340666160,1729617071320,-500.0,0.0005589,120]
[340666161,1729617071329,-500.0,0.0005589,120]
[340666162,1729617071339,-501.6916587,0.0005589,120]
[340666163,1729617071348,-500.0,0.0005589,120]
[340666164,1729617071357,-500.0,0.0005589,2]
[340666165,1729617071367,-740.711255,0.0005589,120]
[340666166,1729617071380,-500.0,0.0005589,120]
[340666167,1729617071389,-500.0,0.0005589,120]
[340666168,1729617071400,-500.0,0.0005589,120]
[340666169,1729617071409,-500.0,0.0005589,120]
[340666170,1729617071418,-500.0,0.0005589,120]
[340666171,1729617071427,-740.711255,0.0005589,120]
[340666172,1729617071436,-500.0,0.0005589,120]
[340666173,1729617071445,-500.0,0.0005589,120]
[340666174,1729617071455,-500.0,0.0005589,120]
[340666175,1729617071464,-500.0,0.0005589,120]
[340666176,1729617071473,-500.0,0.0005589,120]
[340666177,1729617071483,-500.0,0.0005589,120]
[340666178,1729617071492,-500.0,0.0005589,120]
[340666179,1729617071501,-385.28733366,0.0005589,120]
[340666180,1729617071511,-605.95,0.0005589,120]
[340666181,1729617071520,-500.0,0.0005589,120]
[340666182,1729617071530,-500.0,0.0005589,120]
[340666183,1729617071539,-568.52,0.0005589,120]
[340666184,1729617071548,-500.0,0.0005589,120]
[340666185,1729617071557,-500.0,0.0005589,120]
[340666186,1729617071566,-500.0,0.0005589,120]
[340666187,1729617071576,-500.0,0.0005589,120]
[340666188,1729617071585,-526.83,0.0005589,120]
[340666189,1729617071598,-504.02856476,0.0005589,120]
[340666190,1729617071608,-502.10890655,0.0005589,120]
[340666191,1729617071617,-344.14782946,0.0005589,120]
[340666192,1729617071629,-500.0,0.0005589,120]
[340666193,1729617071639,-512.66028094,0.0005589,120]
[340666194,1729617071648,-500.0,0.0005589,120]
[340666195,1729617071658,-374.42473983,0.0005589,120]
[340666196,1729617071668,-500.0,0.0005589,120]
[340666197,1729617071678,-500.0,0.0005589,120]
[340666198,1729617071687,-557.28,0.0005589,120]
[340666199,1729617071696,-589.33002876,0.0005589,120]
[340666200,1729617071706,-296.02513,0.0005589,120]
[340666201,1729617071715,-500.0,0.0005589,120]
[340666202,1729617071725,-500.0,0.0005589,120]
[340666203,1729617071734,-351.553744,0.0005589,120]
[340666204,1729617071743,-296.02513,0.0005589,120]
[340666205,1729617071752,-500.0,0.0005589,120]
[340666206,1729617071762,-160.46,0.0005589,2]
[340666207,1729617071771,-164.18,0.0005589,2]
[340666208,1729617071781,-305.71,0.00056122,2]
[340666209,1729617071790,-396.8984494,0.00056416,15]
[340666210,1729617071800,-151.0,0.000569,120]
[340666211,1729617071809,-151.0,0.000569,120]
[340666212,1729617071823,-207.781286,0.000569,120]
[340666213,1729617071832,-500.0,0.00056986,120]
[340666214,1729617071841,-390.65942216,0.00056986,120]
[340666215,1729617071851,-500.0,0.00056986,120]
[340666216,1729617071860,-500.0,0.00056986,120]
[340666217,1729617071871,-500.0,0.00056986,120]
[340666218,1729617071880,-500.0,0.00056986,120]
[340666219,1729617071889,-500.0,0.00056986,120]
[340666220,1729617071899,-500.0,0.00056986,120]
[340666221,1729617071910,-500.0,0.00056986,120]
[340666222,1729617071920,-500.0,0.00056986,120]
[340666223,1729617071931,-504.73003633,0.00056986,120]
[340666224,1729617071940,-500.0,0.00056986,120]
[340666225,1729617071951,-500.0,0.00056986,120]
[340666226,1729617071960,-498.58301614,0.00056986,120]
[340666227,1729617071969,-500.0,0.00056986,120]
[340666228,1729617071981,-500.0,0.00056986,120]
[340666229,1729617072105,-500.0,0.00056986,120]
[340666230,1729617072115,-500.0,0.00056986,120]
[340666231,1729617072125,-500.0,0.00056986,120]
[340666232,1729617072134,-500.0,0.00056986,120]
[340666233,1729617072144,-500.0,0.00056986,120]
[340666234,1729617072153,-500.0,0.00056986,120]
[340666235,1729617072162,-513.0948986,0.00056986,120]
[340666236,1729617072171,-500.0,0.00056986,120]
[340666237,1729617072181,-500.0,0.00056986,120]
[340666238,1729617072192,-500.0,0.00056986,120]
[340666239,1729617072201,-500.0,0.00056986,120]
[340666240,1729617072211,-500.0,0.00056986,120]
[340666241,1729617072220,-500.0,0.00056986,120]
[340666242,1729617072230,-500.0,0.00056986,120]
[340666243,1729617072239,-290.51731451,0.00056986,120]
[340666244,1729617072249,-513.34931161,0.00056986,120]
[340666245,1729617072260,-500.0,0.00056986,120]
[340666246,1729617072271,-500.0,0.00056986,120]
[340666247,1729617072282,-500.0,0.00056986,120]
[340666248,1729617072292,-500.0,0.00056986,120]
[340666249,1729617072304,-500.0,0.00056986,120]
[340666250,1729617072314,-569.24,0.00056986,120]
[340666251,1729617072324,-500.0,0.00056986,120]
[340666252,1729617072334,-500.0,0.00056986,120]
[340666253,1729617072345,-151.0,0.00056986,120]
[340666254,1729617072356,-526.34,0.00056986,120]
[340666255,1729617072366,-500.0,0.00056986,120]
[340666256,1729617072376,-500.0,0.00056986,120]
[340666257,1729617072385,-500.0,0.00056986,120]
[340666258,1729617072395,-500.0,0.00056986,120]
[340666259,1729617072406,-404.82176045,0.00056986,120]
[340666260,1729617072416,-500.0,0.00056986,120]
[340666261,1729617072426,-500.0,0.00056986,120]
[340666262,1729617072436,-500.0,0.00056986,120]
[340666263,1729617072445,-500.0,0.00056986,120]
[340666264,1729617072455,-500.0,0.00056986,120]
[340666265,1729617072466,-505.12211301,0.00056986,120]
[340666266,1729617072476,-500.0,0.00056986,120]
[340666267,1729617072486,-500.0,0.00056986,120]
[340666268,1729617072498,-500.0,0.00056986,120]
[340666269,1729617072508,-500.0,0.00056986,120]
[340666270,1729617072518,-500.0,0.00056986,120]
[340666271,1729617072528,-1000.0,0.00056986,120]
[340666272,1729617072538,-500.0,0.00056986,120]
[340666273,1729617072548,-500.0,0.00056986,120]
[340666274,1729617072559,-500.0,0.00056986,120]
[340666275,1729617072569,-500.0,0.00056986,120]
[340666276,1729617072578,-500.0,0.00056986,120]
[340666277,1729617072587,-500.0,0.00056986,120]
[340666278,1729617072601,-500.0,0.00056986,120]
[340666279,1729617072610,-500.0,0.00056986,120]
[340666280,1729617072619,-500.0,0.00056986,120]
[340666281,1729617072630,-500.0,0.00056986,120]
[340666282,1729617072639,-500.0,0.00056986,120]
[340666283,1729617072648,-151.0,0.00056986,120]
[340666284,1729617072657,-500.0,0.00056986,120]
[340666285,1729617072666,-500.0,0.00056986,120]
[340666286,1729617072678,-500.0,0.00056986,120]
[340666287,1729617072687,-500.0,0.00056986,120]
[340666288,1729617072696,-500.0,0.00056986,120]
[340666289,1729617072705,-500.0,0.00056986,120]
[340666290,1729617072715,-500.0,0.00056986,120]
[340666291,1729617072724,-597.85,0.00056986,120]
[340666292,1729617072734,-500.0,0.00056986,120]
[340666293,1729617072743,-224.96328229,0.00056986,120]
[340666294,1729617072751,-527.16579591,0.00056986,120]
[340666295,1729617072761,-150.0,0.00056986,120]
[340666296,1729617072770,-512.14060067,0.00056986,120]
[340666297,1729617072779,-500.0,0.00056986,120]
[340666298,1729617072789,-500.0,0.00056986,120]
[340666299,1729617072798,-500.0,0.00056986,120]
[340666300,1729617072806,-500.0,0.00056986,120]
[340666301,1729617072815,-265.82,0.00056986,120]
[340666302,1729617072823,-500.0,0.00056986,120]
[340666303,1729617072833,-500.0,0.00056986,120]
[340666304,1729617072844,-500.0,0.00056986,120]
[340666305,1729617072854,-500.0,0.00056986,120]
[340666306,1729617072864,-500.0,0.00056986,120]
[340666307,1729617072874,-500.0,0.00056986,120]
[340666308,1729617072883,-545.33929484,0.00056986,120]
[340666309,1729617072893,-500.0,0.00056986,120]
[340666310,1729617072902,-500.0,0.00056986,120]
[340666311,1729617072914,-500.0,0.00056986,120]
[340666312,1729617072924,-500.0,0.00056986,120]
[340666313,1729617072934,-500.0,0.00056986,120]
[340666314,1729617072944,-500.0,0.00056986,120]
[340666315,1729617072955,-500.0,0.00056986,120]
[340666316,1729617072965,-500.0,0.00056986,120]
[340666317,1729617072975,-500.0,0.00056986,120]
[340666318,1729617072987,-668.75,0.00056986,120]
[340666319,1729617072996,-500.0,0.00056986,120]
[340666320,1729617073006,-500.0,0.00056986,120]
[340666321,1729617073016,-500.0,0.00056986,120]
[340666322,1729617073026,-500.0,0.00056986,120]
[340666323,1729617073035,-500.0,0.00056986,120]
[340666324,1729617073044,-500.0,0.00056986,120]
[340666325,1729617073055,-500.0,0.00056986,120]
[340666326,1729617073064,-500.0,0.00056986,120]
[340666327,1729617073077,-500.0,0.00056986,120]
[340666328,1729617073086,-511.02402442,0.00056986,120]
[340666329,1729617073095,-448.64215843,0.00056986,120]
[340666330,1729617073104,-500.0,0.00056986,120]
[340666331,1729617073114,-500.0,0.00056986,120]
[340666332,1729617073124,-500.0,0.00056986,120]
[340666333,1729617073133,-500.0,0.00056986,120]
[340666334,1729617073142,-500.0,0.00056986,120]
[340666335,1729617073152,-500.0,0.00056986,120]
[340666336,1729617073161,-500.0,0.00056986,120]
[340666337,1729617073171,-500.0,0.00056986,120]
[340666338,1729617073180,-500.0,0.00056986,120]
[340666339,1729617073189,-500.0,0.00056986,120]
[340666340,1729617073200,-500.0,0.00056986,120]
[340666341,1729617073209,-500.0,0.00056986,120]
[340666342,1729617073218,-500.0,0.00056986,120]
[340666343,1729617073228,-500.0,0.00056986,120]
[340666344,1729617073237,-151.0,0.00056986,30]
[340666345,1729617073246,-500.0,0.00056986,120]
[340666346,1729617073257,-500.0,0.00056986,120]
[340666347,1729617073267,-515.54305184,0.00056986,120]
[340666348,1729617073276,-151.0,0.00056986,30]
[340666349,1729617073286,-508.63,0.00056986,120]
[340666350,1729617073295,-500.0,0.00056986,120]
[340666351,1729617073304,-500.0,0.00056986,120]
[340666352,1729617073313,-500.0,0.00056986,120]
[340666353,1729617073322,-500.0,0.00056986,120]
[340666354,1729617073331,-500.0,0.00056986,120]
[340666355,1729617073341,-500.0,0.00056986,120]
[340666356,1729617073350,-500.0,0.00056986,120]
[340666357,1729617073360,-500.0,0.00056986,120]
[340666358,1729617073369,-504.58955657,0.00056986,120]
[340666359,1729617073384,-1183.71,0.00056986,120]
[340666360,1729617073393,-535.56,0.00056986,120]
[340666361,1729617073402,-500.0,0.00056986,120]
[340666362,1729617073411,-500.0,0.00056986,120]
[340666363,1729617073421,-500.0,0.00056986,120]
[340666364,1729617073430,-500.0,0.00056986,120]
[340666365,1729617073439,-761.03,0.00056986,120]
[340666366,1729617073448,-529.55,0.00056986,120]
[340666367,1729617073457,-500.0,0.00056986,120]
[340666368,1729617073467,-515.53119984,0.00056986,120]
[340666369,1729617073476,-500.0,0.00056986,120]
[340666370,1729617073486,-505.26668588,0.00056986,120]
[340666371,1729617073495,-518.06169183,0.00056986,120]
[340666372,1729617073504,-500.0,0.00056986,120]
[340666373,1729617073513,-500.0,0.00056986,120]
[340666374,1729617073522,-500.0,0.00056986,120]
[340666375,1729617073531,-515.26176539,0.00056986,120]
[340666376,1729617073540,-500.0,0.00056986,120]
[340666377,1729617073550,-700.89,0.00056986,120]
[340666378,1729617073559,-500.0,0.00056986,120]
[340666379,1729617073568,-500.0,0.00056986,120]
[340666380,1729617073578,-500.0,0.00056986,120]
[340666381,1729617073587,-556.41,0.00056986,120]
[340666382,1729617073600,-500.0,0.00056986,120]
[340666383,1729617073609,-500.0,0.00056986,120]
[340666384,1729617073618,-514.8758021,0.00056986,120]
[340666385,1729617073628,-500.0,0.00056986,120]
[340666386,1729617073639,-500.0,0.00056986,120]
[340666387,1729617073649,-500.0,0.00056986,120]
[340666388,1729617073658,-500.0,0.00056986,120]
[340666389,1729617073669,-500.0,0.00056986,120]
[340666390,1729617073678,-665.3,0.00056986,120]
[340666391,1729617073687,-500.0,0.00056986,120]
[340666392,1729617073696,-500.0,0.00056986,120]
[340666393,1729617073705,-500.0,0.00056986,120]
[340666394,1729617073715,-500.0,0.00056986,120]
[340666395,1729617073724,-500.0,0.00056986,30]
[340666396,1729617073733,-500.0,0.00056986,120]
[340666397,1729617073743,-500.0,0.00056986,120]
[340666398,1729617073752,-500.0,0.00056986,120]
[340666399,1729617073761,-776.51,0.00056986,120]
[340666400,1729617073772,-500.0,0.00056986,120]
[340666401,1729617073781,-500.0,0.00056986,120]
[340666402,1729617073790,-500.0,0.00056986,120]
[340666403,1729617073802,-500.0,0.00056986,120]
[340666404,1729617073811,-500.0,0.00056986,120]
[340666405,1729617073820,-500.0,0.00056986,120]
[340666406,1729617073839,-500.0,0.00056986,120]
[340666407,1729617073848,-500.0,0.00056986,120]
[340666408,1729617073857,-550.07,0.00056986,120]
[340666409,1729617073866,-151.0,0.00056986,120]
[340666410,1729617073878,-500.0,0.00056986,120]
[340666411,1729617073890,-846.22,0.00056986,120]
[340666412,1729617073899,-500.0,0.00056986,120]
[340666413,1729617073908,-647.68,0.00056986,120]
[340666414,1729617073918,-500.0,0.00056986,120]
[340666415,1729617073927,-698.01,0.00056986,120]
[340666416,1729617073936,-500.0,0.00056986,120]
[340666417,1729617074056,-420.81362647,0.00056986,120]
[340666418,1729617074067,-512.1724204,0.00056986,120]
[340666419,1729617074077,-592.87,0.00056986,120]
[340666420,1729617074086,-322.66453898,0.00056986,120]
[340666421,1729617074096,-514.25076855,0.00056986,120]
[340666422,1729617074105,-588.61822238,0.00056986,120]
[340666423,1729617074116,-500.0,0.00056986,120]
[340666424,1729617074127,-572.36,0.00056986,120]
[340666425,1729617074136,-500.0,0.00056986,120]
[340666426,1729617074145,-500.0,0.00056986,120]
[340666427,1729617074155,-151.0,0.00056986,120]
[340666428,1729617074164,-299.22417468,0.00056986,120]
[340666429,1729617074173,-500.0,0.00056986,120]
[340666430,1729617074182,-785.75,0.00056986,120]
[340666431,1729617074192,-500.0,0.00056986,120]
[340666432,1729617074201,-514.70764425,0.00056986,120]
[340666433,1729617074210,-500.0,0.00056986,120]
[340666434,1729617074220,-500.0,0.00056986,120]
[340666435,1729617074229,-822.46,0.00056986,120]
[340666436,1729617074238,-500.0,0.00056986,120]
[340666437,1729617074249,-151.0,0.00056986,120]
[340666438,1729617074259,-151.0,0.00056986,120]
[340666439,1729617074268,-188.948958,0.00056986,120]
[340666440,1729617074278,-500.0,0.00056986,120]
[340666441,1729617074287,-564.6,0.00056986,120]
[340666442,1729617074296,-500.0,0.00056986,120]
[340666443,1729617074305,-501.14,0.00056986,120]
[340666444,1729617074315,-188.948958,0.00056986,120]
[340666445,1729617074325,-500.0,0.00056986,120]
[340666446,1729617074335,-506.23259448,0.00056986,120]
[340666447,1729617074344,-500.0,0.00056986,120]
[340666448,1729617074354,-500.0,0.00056986,120]
[340666449,1729617074363,-500.0,0.00056986,120]
[340666450,1729617074372,-500.0,0.00056986,120]
[340666451,1729617074381,-500.0,0.00056986,120]
[340666452,1729617074390,-266.479967,0.00056986,120]
[340666453,1729617074400,-500.0,0.00056986,120]
[340666454,1729617074409,-860.93,0.00056986,120]
[340666455,1729617074418,-500.0,0.00056986,120]
[340666456,1729617074428,-266.479967,0.00056986,120]
[340666457,1729617074437,-500.0,0.00056986,120]
[340666458,1729617074446,-500.0,0.00056986,120]
[340666459,1729617074455,-184.69458,0.00056986,120]
[340666460,1729617074465,-500.0,0.00056986,120]
[340666461,1729617074474,-534.77,0.00056986,120]
[340666462,1729617074484,-500.0,0.00056986,5]
[340666463,1729617074493,-500.0,0.00056986,120]
[340666464,1729617074502,-572.84445908,0.00056986,120]
[340666465,1729617074511,-511.935889,0.00056986,120]
[340666466,1729617074520,-500.0,0.00056986,120]
[340666467,1729617074529,-511.935889,0.00056986,120]
[340666468,1729617074539,-151.0,0.00056986,120]
[340666469,1729617074548,-1511.79,0.00056986,120]
[340666470,1729617074557,-500.0,0.00056986,120]
[340666471,1729617074566,-500.0,0.00056986,120]
[340666472,1729617074577,-703.57,0.00056986,120]
[340666473,1729617074587,-2936.31,0.00056986,120]
[340666474,1729617074600,-500.0,0.00056986,120]
[340666475,1729617074611,-500.0,0.00056986,120]
[340666476,1729617074623,-500.0,0.00056986,120]
[340666477,1729617074632,-331.00815625,0.00056986,120]
[340666478,1729617074642,-671.41,0.00056986,120]
[340666479,1729617074651,-500.0,0.00056986,120]